Cogmind - Beta 16 --- EXPLORER MODE // 2026.01.26 @ 13:16:55 Player: K.K.Y. Result: Destroyed by PK-YPD(R) with Subdweller Beam Cannon Performance ------------- Evolutions (0) 0 Regions Visited (3) 600 Robots Destroyed (40) 200 Value Destroyed (813) 813 Prototype IDs (1) 20 Alien Tech Used (0) 0 Bonus (0) 0 TOTAL SCORE: 1633 Bonus ------- None Cogmind --------- Core Integrity 0/250 Matter 300/300 Energy 98/100 System Corruption 0% Temperature Cool (10) Movement Treading (320) Ox2 Location -10/Subcaves Parts ------- > --- POWER (1) -------- (None) > --- PROPULSION (2) --- Light Treads > --- UTILITY (3) ------ High-capacity Storage Unit Sensor Array > --- WEAPON (2) ------- Beam Cannon > --- INVENTORY (20) --- Medium Storage Unit Huge Storage Unit Humpback Experimental Sensor Array Improved Terrain Scanner Makeshift Laser Beam Cannon Mining Laser Multitool Peak State ------------ > --- POWER ------------ Ion Engine > --- PROPULSION ------- Light Treads Light Treads > --- UTILITY ---------- Medium Storage Unit Experimental Sensor Array Light Armor Plating > --- WEAPON ----------- Beam Cannon Beam Cannon > --- INVENTORY -------- Light Nuclear Core High-capacity Storage Unit Huge Storage Unit Sensor Array Improved Terrain Scanner Beam Cannon Beam Cannon Beam Cannon Beam Cannon Mining Laser [Rating: 17] Favorites ----------- Power Light Ion Engine Engine Light Ion Engine Power Core Light Nuclear Core Propulsion Light Treads Treads Light Treads Utility Medium Storage Unit Device Sensor Array Storage Medium Storage Unit Protection Light Armor Plating Weapon Beam Cannon Energy Gun Medium Laser Energy Cannon Beam Cannon Special Weapon Mining Laser Build | -11 -10 -10 -10 ------- Run | Yrd Mat Min Sub Slots Evolved 1 | . 1 . . Power . | . . . . Propulsion . | . . . . Utility 1 | . 1 . . Weapon . | . . . . Parts Attached 20 | 7 3 6 4 Power 3 | 1 . 1 1 Engine 2 | 1 . 1 . Core 1 | . . . 1 Reactor . | . . . . Propulsion 3 | 2 . 1 . Treads 3 | 2 . 1 . Leg . | . . . . Wheel . | . . . . Hover . | . . . . Flight . | . . . . Utility 6 | 2 . 3 1 Device 3 | . . 3 . Storage 2 | 1 . . 1 Processor . | . . . . Hackware . | . . . . Protection 1 | 1 . . . Artifact . | . . . . Weapon 8 | 2 3 1 2 Energy Gun 3 | 2 . . 1 Energy Cannon 3 | . 2 1 . Ballistic Gun . | . . . . Ballistic Cannon . | . . . . Launcher . | . . . . Special Weapon 2 | . 1 . 1 Impact Weapon . | . . . . Slashing Weapon . | . . . . Piercing Weapon . | . . . . Special Melee Weapon . | . . . . Unidentified Prototypes 1 | . . 1 . Parts Lost 6 | . . . 6 Power 1 | . . . 1 Propulsion 1 | . . . 1 Utility 1 | . . . 1 Weapon 3 | . . . 3 Highest Loss Streak 2 | . . . 2 To Critical Strikes . | . . . . Average Backups 8 | . 7 10 9 Power . | . . 1 . Propulsion . | . . . . Utility 4 | . 3 4 4 Weapon 3 | . 2 5 3 Tool/Special . | . . . . Unused Backups 7 | . . . 7 Power . | . . . . Propulsion . | . . . . Utility 3 | . . . 3 Weapon 3 | . . . 3 Tool/Special 1 | . . . 1 Average Slot Usage (%) 88 | . 87 92 87 Engine 6 | . 12 12 . Core 3 | . . . 6 Treads 22 | . 25 25 19 Device 13 | . . 9 23 Storage 12 | . 12 12 12 Protection 5 | . 12 8 . Energy Gun 3 | . 12 . . Energy Cannon 17 | . 10 23 18 Special Weapon 3 | . 1 1 5 Peak Build Rating 17 | 7 8 17 15 Average Rating 8 | 6 7 8 10 On Entrance 6 | . 7 8 10 Avg Prop Armor Cover (%) . | . . . . Naked Turns . | . . . . Heaviest Build 53 | 20 22 25 53 Greatest Support 40 | 40 40 40 40 Greatest Overweight (x) 2 | . . . 2 Average Overweight (x) . | . . . 1 Largest Inventory Capacity 20 | 10 10 10 20 Average Capacity 13 | 9 10 10 17 Most Carried 11 | 5 10 10 11 Average Carried 9 | . 7 10 10 Final Capacity 20 | 10 10 10 20 Final Carried 10 | 2 10 10 10 Class Distribution -------------------- 100% | Hacker-Mutant Dominant Class ---------------- Hacker-Mutant | -10/Materials Hacker-Mutant | -10/Mines Hacker-Mutant | -10/Subcaves Resources | -11 -10 -10 -10 ----------- Run | Yrd Mat Min Sub Matter Collected 505 | 270 50 60 125 Remotely . | . . . . Salvage Created 1219 | 290 406 170 353 Parts 63 | 13 24 11 15 Haulers Intercepted 1 | . 1 . . Recyclers Shooed 3 | . 2 1 . Parts Field Recycled . | . . . . Retrieved Matter . | . . . . Parts Self-Destructed . | . . . . Prevented . | . . . . Parts Restored . | . . . . Kills | -11 -10 -10 -10 ------- Run | Yrd Mat Min Sub Combat Hostiles Destroyed 22 | . 8 6 8 Guns 7 | . 7 . . Cannons 14 | . . 6 8 Classes Destroyed 9 | 2 5 . 2 Builder 3 | . 2 1 . Tunneler 9 | 9 . . . Hauler 1 | . 1 . . Recycler 2 | 1 1 . . Watcher 3 | . 3 . . Swarmer 8 | . 4 4 . Grunt 6 | . 4 2 . Artisan 1 | . . . 1 Subdweller 8 | . . . 8 Best Kill Streak 6 | 2 6 2 2 Combat Bots Only 2 | . 2 2 2 Max Kills in Single Turn 2 | 1 2 1 1 Gunslinging 1 | . 1 . . Exploded . | . . . . Melee . | . . . . Uniques/NPCs Destroyed . | . . . . Combat | -11 -10 -10 -10 -------- Run | Yrd Mat Min Sub Hostile Shots Fired 112 | . 32 12 68 Missed 22 | . 5 4 13 Hits 90 | . 27 8 55 Projectile 90 | . 27 8 55 AOE 1 | . . . 1 Critical Strikes 3 | . 1 1 1 Damage Taken 1025 | . 176 59 790 Core 259 | . 52 4 203 Absorbed by Shields . | . . . . Ignored by Resistances 623 | . 118 39 466 Core Remaining (%) 100 | 100 . . . Volleys Fired 126 | 20 34 11 61 Largest 2 | 2 2 2 2 Hottest 210 | 100 150 120 210 Shots Fired 243 | 40 64 22 117 Gun 103 | 40 58 . 5 Cannon 117 | . . 22 95 Launcher . | . . . . Special 23 | . 6 . 17 Kinetic . | . . . . Thermal 243 | 40 64 22 117 Explosive . | . . . . Electromagnetic . | . . . . Robot Hit Streak 24 | 24 18 24 17 Robot Miss Streak 2 | 1 1 1 2 Penetration Max . | . . . . Secondary Targets 1 | . 1 . . Max Gunslinging Chain 1 | . 1 . . Shots Hit Robots 166 | 34 47 17 68 Core Hits 57 | 11 22 8 16 Critical Kills . | . . . . Critical Parts Destroyed . | . . . . Critical Strikes 8 | 3 5 . . Burn 8 | 3 5 . . Melee Attacks . | . . . . Impact . | . . . . Slashing . | . . . . Piercing . | . . . . Sneak Attacks . | . . . . Combat Hostiles . | . . . . Follow-up Attacks . | . . . . Damage Inflicted 2346 | 431 600 298 1017 Guns 1042 | 431 576 . 35 Cannons 1277 | . . 295 982 Explosions . | . . . . Melee . | . . . . Ramming 3 | . . 3 . Kinetic . | . . . . Thermal 2343 | 431 600 295 1017 Explosive . | . . . . Electromagnetic . | . . . . Impact . | . . . . Slashing . | . . . . Piercing . | . . . . Highest Corruption . | . . . . Average Corruption . | . . . . Corruption Purged . | . . . . Corruption Blocked . | . . . . Overload Shots 1 | . . . 1 Overflow Damage 13 | . . . 13 Projectiles 13 | . . . 13 Explosions . | . . . . Melee . | . . . . Knockbacks . | . . . . Impact . | . . . . Kinetic . | . . . . Secondary . | . . . . Self-Inflicted Damage . | . . . . Shots . | . . . . Rammed 1 | . . 1 . Targets Rammed 1 | . . 1 . Kicked . | . . . . Crushed . | . . . . Highest Temperature 393 | 208 393 234 184 Average Temperature 91 | 76 108 92 59 Received Heat Transfer 519 | . 105 27 387 Effects 3 | . 3 . . Shutdowns 1 | . 1 . . Interference 2 | . 2 . . Siege Activations . | . . . . Martial Activations . | . . . . Shielding Activations . | . . . . Robots Disrupted . | . . . . Combat Hostiles . | . . . . Robots Corrupted . | . . . . Combat Hostiles . | . . . . Parts Fried . | . . . . Impact Corruptions . | . . . . Robots Melted 2 | . 2 . . Combat Hostiles 1 | . 1 . . Parts Melted 18 | 9 5 1 3 Heat Transferred 6377 | 1480 2122 629 2146 Parts Sabotaged . | . . . . Parts Stolen . | . . . . Parts Stripped . | . . . . Power Chain Reactions . | . . . . Alert | -11 -10 -10 -10 ------- Run | Yrd Mat Min Sub Maximum Alert Level . | . . . . Low Security (%) 100 | 100 100 100 . Level 1 . | . . . . Level 2 . | . . . . Level 3 . | . . . . Level 4 . | . . . . Level 5 . | . . . . High Security . | . . . . Max Security . | . . . . Peak Influence 59 | 10 59 54 . Initial . | . . . . Average 4 | 1 6 3 . Influence Increases 466 | 50 253 163 . Destroy 0b10 Robot/C 280 | . 160 120 . Destroy 0b10 Robot/NC 90 | 50 35 5 . Destroy Leader 78 | . 48 30 . Successful Hack 2 | . 2 . . Disable Machine 12 | . 4 8 . Destroy Structure 4 | . 4 . . Influence Decreases 466 | 50 253 163 . Time Decay 466 | 50 253 163 . Squads Dispatched . | . . . . Investigation . | . . . . Extermination . | . . . . Reinforcement . | . . . . Assault . | . . . . Garrison . | . . . . Intercept . | . . . . Searches Triggered . | . . . . Construction Impeded . | . . . . Haulers Reinforced . | . . . . Active Scanning Responses . | . . . . Cargo Convoy Interrupts . | . . . . Stealth | -11 -10 -10 -10 --------- Run | Yrd Mat Min Sub Distress Signals 1 | . 1 . . Communications Jammed . | . . . . Distress Signals . | . . . . Times Spotted 26 | . 11 5 10 Peak Tracking Total 4 | . 4 2 2 Tactical Retreats . | . . . . Traps | -11 -10 -10 -10 ------- Run | Yrd Mat Min Sub Traps Triggered . | . . . . Indirectly . | . . . . Trap Hack Attempts . | . . . . Triggered . | . . . . Disarmed . | . . . . Reprogrammed . | . . . . Reused . | . . . . Traps Extracted . | . . . . Installed . | . . . . Triggered . | . . . . Machines | -11 -10 -10 -10 ---------- Run | Yrd Mat Min Sub Machines Disabled 3 | . 1 2 . Max in Single Turn 1 | . 1 1 . Machines Repaired . | . . . . Machines Dismantled . | . . . . Machines Sabotaged . | . . . . Overloaded Fab Kills . | . . . . Hacking | -11 -10 -10 -10 --------- Run | Yrd Mat Min Sub Machines Accessed 10 | . 10 . . Terminals 8 | . 8 . . Fabricators . | . . . . Repair Stations . | . . . . Recycling Units 2 | . 2 . . Scanalyzers . | . . . . Garrison Access . | . . . . Total Hacks 17 | . 17 . . Successful 10 | . 10 . . Failed 7 | . 7 . . Catastrophic . | . . . . Database Lockouts . | . . . . Manual 11 | . 11 . . Terminals 14 | . 14 . . Fabricators . | . . . . Repair Stations . | . . . . Recycling Units 3 | . 3 . . Scanalyzers . | . . . . Garrison Access . | . . . . Terminal Hacks 3 | . 3 . . Robot Analysis 1 | . 1 . . Locate Traps 2 | . 2 . . Fabricator Hacks . | . . . . Repair Station Hacks . | . . . . Recycling Unit Hacks 2 | . 2 . . Retrieve Components 2 | . 2 . . Scanalyzer . | . . . . Garrison Access Hacks . | . . . . Unauthorized Hacks 5 | . 5 . . Terminals 5 | . 5 . . Botnet 5 | . 5 . . Fabricators . | . . . . Repair Stations . | . . . . Recycling Units . | . . . . Scanalyzers . | . . . . Garrison Access . | . . . . Data Cores Recovered . | . . . . Used . | . . . . Hacking Detections 3 | . 3 . . Full Trace Events . | . . . . Feedback Events . | . . . . Feedback Blocked . | . . . . Robot Schematics Acquired . | . . . . Robots Built . | . . . . Authchips . | . . . . Time . | . . . . Total Robot Build Rating . | . . . . Part Schematics Acquired . | . . . . Parts Built . | . . . . Authchips . | . . . . Time . | . . . . Total Part Build Rating . | . . . . Part Studies Acquired . | . . . . Parts Repaired . | . . . . Time . | . . . . Parts Recycled . | . . . . Recycled Matter . | . . . . Retrieved Matter . | . . . . Retrieved Components 4 | . 4 . . Parts Scanalyzed . | . . . . Part Schematics Acquired . | . . . . Parts Damaged . | . . . . Bothacking | -11 -10 -10 -10 ------------ Run | Yrd Mat Min Sub Used RIF Installer . | . . . . Robots Hacked . | . . . . Non-combat . | . . . . Combat . | . . . . Robot Hacks Applied . | . . . . Relay Couplers Released . | . . . . Fabnet Peak Effective % . | . . . . Robots Rewired . | . . . . Allies Hacked . | . . . . Hacks Repelled . | . . . . Allies | -11 -10 -10 -10 -------- Run | Yrd Mat Min Sub Total Allies . | . . . . Largest Group . | . . . . Highest-Rated Group . | . . . . Highest-Rated Ally . | . . . . Total Orders . | . . . . Ally Attacks . | . . . . Total Damage . | . . . . Kills . | . . . . Allies Corrupted . | . . . . Allies Melted . | . . . . Intel | -11 -10 -10 -10 ------- Run | Yrd Mat Min Sub Active Infowar (turns) 2831 | . . 546 2285 Sensors 2831 | . . 546 2285 Structural 2409 | . . 391 2018 Robot Analysis Total 1 | . 1 . . Derelict Logs Recovered . | . . . . Drone Launches . | . . . . Drone Recoveries . | . . . . Exploration | -11 -10 -10 -10 ------------- Run | Yrd Mat Min Sub Turns Passed 5067 | 286 1247 1249 2285 Spaces Moved 2371 | 141 694 742 794 Core 21 | 21 . . . Treads 2350 | 120 694 742 794 Legs . | . . . . Wheels . | . . . . Hover . | . . . . Flight . | . . . . Fastest Speed 50 | 50 160 160 160 Average Speed 186 | 143 160 160 243 Slowest Speed 320 | 160 160 160 320 Overloaded Moves . | . . . . Propulsion Burnouts . | . . . . Robots Hopped . | . . . . Potential Cave-ins . | . . . . Cave-ins Triggered . | . . . . Exploration Rate (%) 57 | 6 98 99 28 Regions Visited 3 Branch Regions 2 Pre-discovered Areas . | . . . . Known Exits Taken 3 | 1 1 1 . Unknown Exits Taken . | . . . . Scrap Searched 5 | . . 2 3 Spaces Dug 3 | . 3 . . Terrain Destroyed 3 | . 3 . . Melee . | . . . . Projectile 3 | . 3 . . AOE . | . . . . Terrain Rammed . | . . . . Walls Destroyed . | . . . . Machines Disabled . | . . . . Actions | -11 -10 -10 -10 --------- Run | Yrd Mat Min Sub Total 2711 | 184 753 781 993 Wait 155 | 10 9 20 116 Move 2368 | 140 693 741 794 Hop . | . . . . Pick Up 21 | 7 10 . 4 Fast Attach 3 | 2 . 1 . Attach 7 | 5 . . 2 Detach . | . . . . Swap 23 | . 5 5 13 Drop 7 | . 2 2 3 Fire 126 | 20 34 11 61 Melee . | . . . . Ram . | . . . . Kick . | . . . . Crush 1 | . . 1 . Escape Stasis . | . . . . Rewire . | . . . . Trap . | . . . . Miscellaneous . | . . . . Route ------- -11/Scrapyard -10/Materials (discovered 4 exits: *Mat x3 / *Min) -10/Mines (discovered 4 exits: *Mat x2 / *Exi / *Sub) -10/Subcaves History --------- Turn | Location | Event 4 | -11/Scrapyard | Identified exit to Materials 4 | -11/Scrapyard | Discovered exit to Materials (range 16) 287 | -11/Scrapyard | Entered Materials 287 | -10/Materials | Evolved 1 slot: Utility x1 332 | -10/Materials | Build established: Hacker-Mutant 662 | -10/Materials | Identified exit to Mines 662 | -10/Materials | Discovered exit to Mines (range 16) 1003 | -10/Materials | Identified exit to Materials 1003 | -10/Materials | Discovered exit to Materials (range 12) 1158 | -10/Materials | Discovered exit to Materials (range 5) 1431 | -10/Materials | Discovered exit to Materials (range 16) 1534 | -10/Materials | Entered Mines 1791 | -10/Mines | Discovered exit to Materials (range 9) 2234 | -10/Mines | Found a damaged Exp. Sensor Array with a note attached 2237 | -10/Mines | Found Prototype Device 2237 | -10/Mines | Identified Exp. Sensor Array 2296 | -10/Mines | Found a Scrap Suit stashed away for nefarious purposes 2593 | -10/Mines | Discovered exit to Materials (range 10) 2673 | -10/Mines | Identified exit to Subcaves 2673 | -10/Mines | Discovered exit to Subcaves (range 6) 2721 | -10/Mines | Deemed a non-threat by the Exiles lab entrance 2721 | -10/Mines | Identified exit to Exiles 2721 | -10/Mines | Discovered exit to Exiles (range 5) 2783 | -10/Mines | Entered Subcaves 2784 | -10/Subcaves | Approached by a straggling Scientist 3663 | -10/Subcaves | A swath of the cavern ceiling suddenly collapsed 4796 | -10/Subcaves | Core integrity fell below 50% 5052 | -10/Subcaves | Disturbed a concealed Subdweller 5059 | -10/Subcaves | Core integrity fell below 20% 5068 | -10/Subcaves | Destroyed by PK-YPD(R) with Subdweller Beam Cannon Last Messages --------------- 04633_ Disposable Heat Sink melted. 04633_ 4Q-1GV(R) destroyed. 04639_ Acquired 20 matter. 04793_ Critical hit (Meltdown: +180). 04799_ Beam Cannon destroyed. 04801_ Structural Scanner destroyed. 04811_ Sub. Monowheel melted. 04811_ AG-VWF(R) destroyed. 04819_ KN-5HL(R) affixes Scrap Shield Fragment to Scrap Shield. 04824_ Subatomizers dissect the Sub. Optics. 04829_ KN-5HL(R) destroyed. 04832_ Acquired 20 matter. 04862_ Subatomizers dissect the Sub. Optics. 04945_ Subatomizers dissect the Sub. Machine Gun. 05052_ PK-YPD(R) angrily emerges from the Twisted Machinery. 05058_ Beam Cannon destroyed. Map ----- +----------------------------------------------------+ | ?????????????????????????????????????????????????? | | ?????????????????????????????????????????????????? | | ?????????????????????????????????????????????????? | | ?????????????????????????????????????????????????? | | ?????????????????????????????????????????????????? | | ?????????????????????????????????????????????????? | | ?????????????????????????????????????????????????? | | ?????????????????????????????????????????????????? | | ?????????????????????????????????????????????????? | | ?????????????????????????????????????????????????? | | ?????????????????????????????????????????????????? | | ???????????????????????????????##????????????????? | | ???????????????????????????????$ ????????????????? | | ?????????????????????????????? &?????????????????? | | ??????????????????????????????&